fUSD/lending_fUSD_20250524
["ID","MTS","AMOUNT","RATE_DAILY","PERIOD"]
[362199176,1748087440332,-2720.0,0.000198,2]
[362199185,1748087442958,-414.68001201,0.000198,2]
[362199186,1748087442969,-369.04840763,0.000198,2]
[362199187,1748087443014,-2457.35796407,0.000198,2]
[362199188,1748087443025,-1613.32282463,0.000198,2]
[362199189,1748087443071,-2169.80304762,0.000198,2]
[362199190,1748087443125,-13584.54397722,0.000198,2]
[362199191,1748087443136,-707.675,0.000198,2]
[362199192,1748087443180,-29519.68707833,0.000198,2]
[362199193,1748087443189,-1000.0,0.000198,2]
[362199194,1748087443199,-500.0,0.000198,7]
[362199195,1748087443208,-177.63380892,0.000198,2]
[362199196,1748087443217,-177.63380889,0.00019811,2]
[362199197,1748087443227,-303.72409049,0.00019814,2]
[362199198,1748087443237,-177.63380889,0.00019822,2]
[362199199,1748087443246,-177.63380889,0.00019833,2]
[362199200,1748087443255,-161.01558353,0.00019836,2]
[362199201,1748087443265,-200.0,0.0001984,2]
[362199202,1748087443274,-303.72409049,0.00019843,2]
[362199203,1748087443283,-177.63380889,0.00019844,2]
[362199204,1748087443292,-177.63380889,0.00019856,2]
[362199205,1748087443301,-177.63380889,0.00019867,2]
[362199206,1748087443310,-303.72409049,0.00019871,2]
[362199207,1748087443319,-1682.18,0.00019873,2]
[362199208,1748087443329,-177.63380889,0.00019878,2]
[362199209,1748087443338,-177.63380889,0.00019889,2]
[362199210,1748087443347,-53763.15585426,0.000199,7]
[362199215,1748087443427,-3896.67322716,0.000199,7]
[362199217,1748087443438,-1318.3450002,0.000199,7]
[362199219,1748087443454,-23885.53261364,0.000199,7]
[362199457,1748087445744,-1000.0,0.000197,2]
[362199459,1748087445755,-152.72860465,0.00019767,2]
[362199461,1748087445764,-12733.5857315,0.000199,7]
[362199464,1748087445775,-286.83857903,0.000199,7]
[362199466,1748087445788,-11194.11041374,0.000199,7]
[362199474,1748087445864,-1646.22752433,0.000199,7]
[362199477,1748087445875,-599.38775637,0.000199,7]
[362199482,1748087445919,-3712.08920011,0.000199,7]
[362199493,1748087446012,-2297.07506595,0.000199,7]
[362199495,1748087446023,-3434.12887577,0.000199,7]
[362199500,1748087446065,-661.68243373,0.000199,7]
[362199503,1748087446076,-2903.75189879,0.000199,7]
[362199505,1748087446087,-9084.15951172,0.000199,7]
[362199509,1748087446118,-268.987887,0.000199,7]
[362199511,1748087446130,-314.67630801,0.000199,7]
[362199517,1748087446174,-623.97075845,0.000199,7]
[362199519,1748087446186,-995.01,0.000199,7]
[362199521,1748087446197,-1622.86002,0.000199,7]
[362199937,1748087715729,212.05915832,0.00016869,2]
[362199938,1748087715753,162.91426321,0.00016869,2]
[362199939,1748087715775,212.05915832,0.00016869,2]
[362199940,1748087715801,622.46742015,0.00016869,2]
[362199945,1748087751632,250.0,0.00015,2]
[362199946,1748087752809,300.0,0.00017,2]
[362199947,1748087785209,173.99999999,0.0002739,120]
[362199948,1748087871721,2000.0,0.00027397,120]
[362199949,1748087893708,-180.06228132,0.00018,2]
[362199950,1748087895863,-274.70799704,0.00018,2]
[362199951,1748087901923,-162.91426321,0.00018,2]
[362199952,1748088031472,345.6,0.00025137,120]
[362199954,1748088107180,311.08,0.00013699,2]
[362199958,1748088571464,-206.0,0.00017424,2]
[362199959,1748088571486,-62.23630326,0.00017999,2]
[362199960,1748088632045,-1200.0,0.00017999,2]
[362199961,1748088632057,-7570.86344658,0.00018,2]
[362199962,1748088632068,-1266.44994488,0.00018,2]
[362199963,1748088632078,-311.12,0.00018042,2]
[362199964,1748088632292,-150.0,0.00018064,2]
[362199965,1748088632310,-5491.89,0.0001808,2]
[362199966,1748088632320,-1802.1,0.00018084,2]
[362199967,1748088632329,-283.76,0.00018105,2]
[362199968,1748088632339,-272.31,0.00018122,2]
[362199969,1748088632348,-2310.11,0.00018138,2]
[362199970,1748088632358,-167.43,0.00018159,2]
[362199971,1748088632368,-1000.0,0.00018171,2]
[362199972,1748088632378,-3697.44,0.00018174,2]
[362199973,1748088632388,-2571.39,0.00018207,2]
[362199974,1748088632398,-562.59,0.00018254,2]
[362199975,1748088632408,-345.6,0.00018281,2]
[362199976,1748088632417,-837.76,0.00018546,2]
[362199977,1748088632427,-2231.06172606,0.00018549,2]
[362199978,1748088632437,-200.0,0.00018569,2]
[362199979,1748088632446,-273.15,0.00018639,2]
[362199980,1748088632456,-263.62388882,0.00018714,2]
[362199981,1748088632466,-23900.0,0.00018715,2]
[362199982,1748088632475,-167.57,0.00018763,2]
[362199983,1748088632484,-4000.0,0.00018835,2]
[362199984,1748088632495,-1077.97,0.0001894,2]
[362199985,1748088632506,-2132.65,0.0001894,2]
[362199986,1748088632515,-151.0,0.0001895,2]
[362199987,1748088632524,-668.65185757,0.0001895,2]
[362199988,1748088632534,-1438.09495884,0.0001895,2]
[362199989,1748088632544,-668.65185757,0.0001895,2]
[362199990,1748088632557,-207.4,0.0001895,2]
[362199992,1748088632566,-200.0,0.00018972,2]
[362199993,1748088632576,-350.0,0.00019,2]
[362199994,1748088632585,-250.0,0.00019004,2]
[362199995,1748088632595,-200.0,0.00019044,2]
[362199996,1748088632605,-1334.78,0.00019046,2]
[362199997,1748088632615,-1240.0,0.00019051,2]
[362199998,1748088632624,-343.99844668,0.000191,2]
[362199999,1748088632634,-150.0,0.0001911,7]
[362200000,1748088632644,-729.0,0.00019129,2]
[362200001,1748088632654,-1209.5,0.00019133,2]
[362200002,1748088632663,-250.0,0.00019166,2]
[362200003,1748088632673,-250.0,0.00019166,2]
[362200004,1748088632683,-1500.0,0.00019178,2]
[362200005,1748088632692,-159.69,0.00019178,2]
[362200006,1748088632702,-824.51213118,0.00019181,2]
[362200007,1748088632712,-200.0,0.00019197,2]
[362200008,1748088632722,-279.87,0.00019223,2]
[362200009,1748088632731,-150.99,0.00019339,2]
[362200010,1748088632740,-6673.86,0.00019339,2]
[362200011,1748088632750,-150.99,0.00019339,2]
[362200012,1748088632759,-693.3919763,0.00019498,2]
[362200013,1748088632769,-447.49736,0.00019599,2]
[362200014,1748088632778,-500.0,0.000196,2]
[362200015,1748088632791,-1000.0,0.000196,2]
[362200016,1748088632802,-10282.99099832,0.000196,2]
[362200017,1748088632812,-2500.0,0.000196,2]
[362200018,1748088632822,-151.86204525,0.000196,2]
[362200019,1748088632832,-824.51213118,0.00019607,2]
[362200020,1748088632842,-10282.99099824,0.00019633,2]
[362200021,1748088632851,-1726.57335661,0.00019639,2]
[362200022,1748088632861,-10282.99099824,0.00019667,2]
[362200023,1748088632871,-500.0,0.00019673,2]
[362200024,1748088632880,-500.0,0.00019673,2]
[362200025,1748088632890,-303.88403609,0.00019673,2]
[362200026,1748088632899,-499.0,0.00019673,2]
[362200027,1748088632908,-165.5822956,0.00019673,2]
[362200028,1748088632918,-22332.1728,0.000197,2]
[362200029,1748088632928,-171324.44019429,0.000197,2]
[362200030,1748088632939,-1084.12496263,0.000197,2]
[362200087,1748088637942,-575.79183066,0.000197,2]
[362200088,1748088638203,-34040.53591242,0.000197,2]
[362200089,1748088638213,-1000.0,0.000197,2]
[362200090,1748088638222,-10282.99099824,0.000197,2]
[362200091,1748088638233,-10282.99099824,0.00019733,2]
[362200092,1748088638242,-1680.0,0.00019735,2]
[362200093,1748088638251,-250.0,0.00019765,2]
[362200095,1748088638261,-10282.99099824,0.00019767,2]
[362200097,1748088638270,-177.63380889,0.0001979,2]
[362200099,1748088638279,-9667.624,0.000198,2]
[362200100,1748088638288,-10282.99099824,0.000198,2]
[362200101,1748088638298,-9077.18940688,0.00019833,2]
[362200293,1748088640337,-876.10111967,0.00019833,2]
[362200301,1748088640401,-329.70047169,0.00019833,2]
[362200303,1748088640410,-200.0,0.0001984,2]
[362200305,1748088640420,-10282.99099824,0.00019867,2]
[362200307,1748088640429,-500.87355242,0.00019873,2]
[362200309,1748088640438,-1345.744,0.00019877,2]
[362200311,1748088640448,-12500.0,0.00019882,2]
[362200313,1748088640457,-7576.69097765,0.00019891,2]
[362200315,1748088640469,-4923.30902235,0.00019891,2]
[362200317,1748088640478,-12500.0,0.00019891,2]
[362200319,1748088640488,-99294.33175245,0.000199,7]
[362200439,1748088641744,150.0,0.00017201,2]
[362200868,1748088645998,-10941.11414862,0.000199,7]
[362200871,1748088646009,-2132.17784401,0.000199,7]
[362200909,1748088646366,-170.42588077,0.000199,7]
[362200911,1748088646376,-67.37855328,0.000199,2]
[362201662,1748088667944,178.45376892,0.00027397,120]
[362201663,1748088802999,201.0,0.0002739,120]
[362201664,1748088830488,190.0,0.00026,120]
[362201665,1748088891491,1088.55,0.00017195,2]
[362201666,1748088931223,213.9360954,0.00027397,120]
[362201667,1748089185542,213.87,0.00025853,120]
[362201670,1748089361614,295.52,0.00013699,2]
[362201672,1748089555187,213.57546789,6.94e-05,2]
[362201673,1748089555209,1265.45303971,6.94e-05,2]
[362201674,1748089569376,250.0,0.00015,2]
[362201675,1748089570230,241.32507231,0.00017,2]
[362201676,1748089570252,58.67492769,0.00017,2]
[362201689,1748089801384,758.38048366,0.00027,120]
[362201691,1748089832095,-206.0,0.00017681,2]
[362201693,1748089832105,-906.22,0.00018564,2]
[362201696,1748089832118,-93.78,0.00018564,2]
[362201697,1748089832128,-150.0,0.00018603,2]
[362201699,1748089832137,-1200.0,0.00018659,2]
[362201702,1748089832147,-1947.38405461,0.0001866,2]
[362201703,1748089832232,-563.70807734,0.0001866,2]
[362201704,1748089832243,-485.0,0.0001866,2]
[362201705,1748089832275,-1876.10601564,0.0001866,2]
[362201706,1748089832289,-417.1601092,0.0001866,2]
[362201707,1748089832301,-4710.64174321,0.0001866,2]
[362201708,1748089832310,-1808.67275318,0.0001878,2]
[362201712,1748089832414,-2436.27928737,0.0001878,2]
[362202292,1748089838674,-5799.06923783,0.0001878,2]
[362202294,1748089838686,-258.51758077,0.0001878,2]
[362202296,1748089838698,-65151.95822446,0.0001878,2]
[362202298,1748089838708,-213.87,0.00018802,2]
[362202300,1748089838718,-497.54,0.00018821,2]
[362202302,1748089838727,-150.95,0.00018845,2]
[362202304,1748089838737,-200.0,0.00018863,2]
[362202306,1748089838746,-350.0,0.00019,2]
[362202308,1748089838755,-207.4,0.00019076,2]
[362202310,1748089838765,-23900.0,0.00019088,2]
[362202312,1748089838774,-165.09,0.00019148,2]
[362202314,1748089838786,-159.69,0.00019178,2]
[362202316,1748089838795,-150.0,0.00019293,7]
[362202318,1748089838805,-1088.55,0.00019459,2]
[362202320,1748089838814,-1312.86854179,0.000195,2]
[362202323,1748089838823,-402.747624,0.00019502,2]
[362202325,1748089838833,-1312.86854171,0.00019544,2]
[362202327,1748089838842,-500.0,0.00019573,2]
[362202329,1748089838852,-668.65185757,0.00019588,2]
[362202331,1748089838863,-668.65185757,0.00019588,2]
[362202333,1748089838872,-1438.09495884,0.00019588,2]
[362202335,1748089838881,-151.0,0.00019588,2]
[362202336,1748089838890,-1312.86854171,0.00019589,2]
[362202338,1748089838899,-2521.0,0.00019598,2]
[362202341,1748089838909,-598.77498232,0.00019599,2]
[362202342,1748089838918,-250.0,0.000196,2]
[362202344,1748089838928,-120766.9966,0.000196,2]
[362202346,1748089838937,-1000.0,0.000196,2]
[362202349,1748089838947,-500.0,0.000196,2]
[362202351,1748089838956,-1312.86854171,0.00019633,2]
[362202353,1748089838966,-10072.42014255,0.0001966,2]
[362202354,1748089838975,-1312.86854171,0.00019678,2]
[362202356,1748089838984,-219.00106733,0.00019709,2]
[362202359,1748089838994,-1312.86854171,0.00019722,2]
[362202361,1748089839003,-1312.86854171,0.00019767,2]
[362202363,1748089839013,-200.0,0.0001979,2]
[362202365,1748089839022,-572.0474,0.000198,2]
[362202367,1748089839033,-151.86204524,0.000198,2]
[362202368,1748089839046,-2500.0,0.000198,2]
[362202370,1748089839055,-1312.86854171,0.00019811,2]
[362202372,1748089839064,-250.0,0.00019814,2]
[362202374,1748089839074,-1312.86854171,0.00019856,2]
[362202376,1748089839083,-1076.595,0.00019873,2]
[362202378,1748089839092,-432.38087658,0.00019898,2]
[362202380,1748089839102,-432.38087658,0.00019898,2]
[362202382,1748089839111,-432.38087658,0.00019898,2]
[362202384,1748089839121,-432.38087658,0.00019899,2]
[362202386,1748089839130,-432.38087658,0.00019899,2]
[362202388,1748089839139,-432.38087658,0.00019899,2]
[362202390,1748089839148,-432.38087658,0.00019899,2]
[362202392,1748089839157,-432.38087658,0.000199,2]
[362202394,1748089839167,-432.38087658,0.000199,2]
[362202396,1748089839177,-12500.0,0.000199,2]
[362202398,1748089839190,-12500.0,0.000199,2]
[362202400,1748089839200,-12500.0,0.000199,2]
[362202402,1748089839209,-305.27088185,0.000199,2]
[362202404,1748089839218,-152.248346,0.000199,2]
[362202406,1748089839229,-12500.0,0.000199,2]
[362202408,1748089839238,-3665.44630963,0.000199,2]
[362202410,1748089839248,-5000.0,0.000199,2]
[362202412,1748089839258,-150.0,0.000199,2]
[362202414,1748089839267,-1312.86854171,0.000199,2]
[362202417,1748089839277,-432.38087658,0.000199,2]
[362202418,1748089839291,-1183.1945666,0.000199,2]
[362202421,1748089839300,-215.28419639,0.000199,2]
[362202423,1748089839309,-180.87183415,0.000199,2]
[362202425,1748089839319,-150.0,0.00019927,2]
[362202427,1748089839328,-150.0,0.00019955,2]
[362202429,1748089839338,-268.0,0.00019955,2]
[362202431,1748089839348,-546.37274512,0.00019973,2]
[362202432,1748089839357,-150.0,0.00019982,2]
[362202435,1748089839366,-12320.3455772,0.00019996,2]
[362202437,1748089839376,-4947.399153,0.00019996,2]
[362202438,1748089839385,-2000.0,0.00019998,2]
[362202441,1748089839395,-1000.0,0.00019998,2]
[362202443,1748089839404,-250.5,0.00019999,2]
[362202444,1748089839414,-3499.14837373,0.00019999,2]
[362202445,1748089839423,-20000.0,0.00019999,2]
[362202446,1748089839433,-642261.1940775,0.0002,2]
[362202563,1748089840311,-3224.158957,0.0002,2]
[362202566,1748089840322,-435.426,0.0002,2]
[362202636,1748089840677,-4741.35094822,0.0002,2]
[362202644,1748089840713,-55389.0,0.0002,2]
[362202651,1748089840757,-19935.5484683,0.0002,2]
[362202654,1748089840772,-20477.47832502,0.0002,2]
[362202657,1748089840789,-9054.74075626,0.0002,2]
[362203077,1748089843272,-4865.67162865,0.0002,2]
[362203081,1748089843313,-712.68,0.0002,2]
[362203083,1748089843324,-1020.7,0.0002,2]
[362203099,1748089843473,-6283.31144558,0.0002,2]
[362203101,1748089843485,-1380.18056297,0.0002,2]
[362203440,1748089846497,-770.95840931,0.0002,2]
[362203441,1748089846510,-1783.37176607,0.0002,2]
[362203443,1748089846623,-40113.22556862,0.0002,2]
[362203449,1748089969228,10000.0,0.00027397,120]
[362203454,1748090102839,10000.0,0.00027397,120]
[362203455,1748090131355,10000.0,0.00027397,120]
[362203456,1748090153894,10000.0,0.00027397,120]
[362203457,1748090179561,10000.0,0.00027397,120]
[362203458,1748090185764,1375.95646261,0.00027397,120]
[362203459,1748090193453,10000.0,0.00027397,120]
[362203460,1748090206086,979.69,0.00017062,2]
[362203461,1748090207855,10000.0,0.00027397,120]
[362203462,1748090224604,10000.0,0.00027397,120]
[362203463,1748090239770,162.07,0.00015167,2]
[362203465,1748090252856,2000.0,0.00027397,120]
[362203466,1748090399185,3700.0,0.00027397,120]
[362203469,1748090487273,280.74,0.00013699,2]
[362203470,1748090514593,207.36,0.00025971,120]
[362203471,1748090777348,3123.49694453,0.00027397,120]
[362203472,1748090819262,-208.49411798,0.00018883,2]
[362203473,1748090894890,500.0,0.00027397,120]
[362203475,1748090920959,500.0,0.00027397,120]
[362203489,1748091032276,-250.0,0.00018863,2]
[362203490,1748091032286,-450.0,0.00018883,2]
[362203491,1748091032391,-341.50588202,0.00018883,2]
[362203492,1748091032402,-207.36,0.00018888,2]
[362203493,1748091032411,-234.29790306,0.00018907,2]
[362203494,1748091032420,-248.77,0.00018964,2]
[362203495,1748091032430,-1200.0,0.00018995,2]
[362203496,1748091032439,-0.0002222,0.00018996,2]
[362203497,1748091032451,-150.9997778,0.00018996,2]
[362203498,1748091032460,-647.0201684,0.00018996,2]
[362203499,1748091032496,-21.63168917,0.00018996,2]
[362203500,1748091032506,-501.87821405,0.00018996,2]
[362203501,1748091032541,-166.77364352,0.00018996,2]
[362203502,1748091032551,-1438.09495884,0.00018996,2]
[362203503,1748091032560,-207.4,0.00018996,2]
[362203504,1748091032571,-23900.0,0.00019008,2]
[362203505,1748091032581,-979.69,0.00019325,2]
[362203506,1748091032590,-206.0,0.00019383,2]
[362203507,1748091032599,-969.73981856,0.000194,4]
[362203508,1748091032609,-164.52,0.00019433,2]
[362203509,1748091032619,-500.0,0.000195,2]
[362203510,1748091032628,-1000.0,0.000195,2]
[362203511,1748091032637,-693.3919763,0.00019544,2]
[362203512,1748091032647,-362.472861,0.00019599,2]
[362203513,1748091032657,-150.0,0.00019731,2]
[362203514,1748091032667,-150.0,0.00019736,2]
[362203515,1748091032676,-150.0,0.00019738,2]
[362203516,1748091032685,-150.0,0.00019745,2]
[362203517,1748091032694,-150.0,0.00019747,2]
[362203518,1748091032704,-150.0,0.00019747,2]
[362203519,1748091032713,-150.0,0.00019751,2]
[362203520,1748091032723,-150.0,0.00019754,2]
[362203522,1748091032733,-150.0,0.00019755,2]
[362203524,1748091032742,-150.0,0.00019766,2]
[362203526,1748091032751,-992.34759515,0.00019772,2]
[362203528,1748091032761,-150.0,0.00019782,2]
[362203530,1748091032770,-150.0,0.00019783,2]
[362203532,1748091032779,-150.0,0.00019786,2]
[362203534,1748091032788,-150.0,0.00019793,2]
[362203536,1748091032797,-69839.1114,0.000198,2]
[362203538,1748091032806,-150.0,0.00019805,2]
[362203540,1748091032816,-150.0,0.00019815,2]
[362203542,1748091032825,-150.0,0.00019818,2]
[362203544,1748091032834,-150.0,0.00019827,2]
[362203546,1748091032844,-150.0,0.00019828,2]
[362203548,1748091032853,-300.0,0.00019828,2]
[362203550,1748091032862,-150.0,0.00019834,2]
[362203552,1748091032872,-150.0,0.00019836,2]
[362203554,1748091032881,-150.0,0.00019841,2]
[362203556,1748091032890,-150.0,0.00019844,2]
[362203558,1748091032900,-150.0,0.00019844,2]
[362203560,1748091032910,-150.0,0.00019849,2]
[362203562,1748091032919,-150.0,0.00019853,2]
[362203564,1748091032928,-150.0,0.00019856,2]
[362203566,1748091032937,-150.0,0.00019876,2]
[362203568,1748091032947,-150.0,0.00019877,2]
[362203570,1748091032956,-150.0,0.0001988,2]
[362203572,1748091032966,-150.0,0.00019887,2]
[362203574,1748091032976,-861.276,0.00019888,2]
[362203576,1748091032985,-2500.0,0.00019899,2]
[362203578,1748091032995,-350.44999723,0.00019899,2]
[362203580,1748091033004,-1843.57891769,0.00019899,2]
[362203582,1748091033013,-350.44999719,0.00019899,2]
[362203584,1748091033023,-1843.5789176,0.00019899,2]
[362203586,1748091033033,-5000.0,0.00019899,2]
[362203588,1748091033042,-350.44999719,0.00019899,2]
[362203590,1748091033052,-1843.5789176,0.00019899,2]
[362203592,1748091033061,-350.44999719,0.00019899,2]
[362203594,1748091033071,-1843.5789176,0.00019899,2]
[362203596,1748091033080,-350.44999719,0.00019899,2]
[362203598,1748091033090,-1843.5789176,0.00019899,2]
[362203600,1748091033100,-350.44999719,0.000199,2]
[362203602,1748091033110,-1843.5789176,0.000199,2]
[362203604,1748091033120,-350.44999719,0.000199,2]
[362203606,1748091033130,-1843.5789176,0.000199,2]
[362203608,1748091033139,-350.44999719,0.000199,2]
[362203610,1748091033149,-1843.5789176,0.000199,2]
[362203612,1748091033158,-350.44999719,0.000199,2]
[362203614,1748091033169,-1843.5789176,0.000199,2]
[362203616,1748091033179,-307.94829672,0.000199,2]
[362203618,1748091033188,-150.0,0.000199,2]
[362203620,1748091033198,-350.44999719,0.000199,2]
[362203622,1748091033208,-788.79637772,0.000199,2]
[362203624,1748091033218,-1679.15998142,0.000199,2]
[362203626,1748091033227,-150.0,0.00019904,2]
[362203647,1748091033417,-150.0,0.00019905,2]
[362203650,1748091033437,-150.0,0.00019907,2]
[362203652,1748091033447,-150.0,0.0001991,2]
[362203654,1748091033456,-150.0,0.00019912,2]
[362203656,1748091033467,-150.0,0.00019913,2]
[362203658,1748091033476,-150.0,0.0001992,2]
[362203660,1748091033489,-150.0,0.0001992,2]
[362203662,1748091033499,-150.0,0.00019923,2]
[362203664,1748091033508,-1000.0,0.00019924,2]
[362203666,1748091033518,-150.0,0.0001994,2]
[362203668,1748091033528,-150.0,0.0001994,2]
[362203670,1748091033537,-150.0,0.00019944,2]
[362203672,1748091033547,-150.0,0.00019946,2]
[362203674,1748091033556,-151.33064016,0.0001996,2]
[362203676,1748091033567,-150.0,0.00019965,2]
[362203678,1748091033578,-150.0,0.00019972,2]
[362203680,1748091033588,-500.0,0.00019973,2]
[362203682,1748091033597,-507.55889128,0.00019973,2]
[362203684,1748091033607,-150.0,0.00019973,2]
[362203686,1748091033616,-150.0,0.00019975,2]
[362203688,1748091033626,-150.0,0.00019976,2]
[362203690,1748091033635,-150.0,0.00019982,2]
[362203691,1748091033644,-150.0,0.00019983,2]
[362203693,1748091033654,-150.0,0.00019988,2]
[362203695,1748091033663,-346.71286106,0.00019989,2]
[362203697,1748091033672,-346.71286106,0.0001999,2]
[362203699,1748091033681,-346.71286106,0.0001999,2]
[362203701,1748091033691,-150.0,0.00019993,2]
[362203703,1748091033701,-150.0,0.00019997,2]
[362203705,1748091033711,-169.187,0.00019998,2]
[362203707,1748091033721,-1456.24947698,0.00019999,2]
[362203709,1748091033730,-137813.62430742,0.00019999,7]
[362203711,1748091033743,-577.83489551,0.00019999,7]
[362204009,1748091038232,-500.0,0.00019899,2]
[362204010,1748091038242,-1843.5789176,0.000199,2]
[362204011,1748091038251,-83125.75907837,0.00019999,7]
[362204012,1748091038290,-40141.52430281,0.00019999,7]
[362204013,1748091038300,-249.13,0.00019999,2]
[362204014,1748091038310,-1154.04304879,0.00019999,2]
[362204015,1748091038624,-1023.1999999,0.00019999,2]
[362204016,1748091038727,-610.94879914,0.00019999,2]
[362204017,1748091040442,-430.71765569,0.000199,2]
[362204018,1748091040452,-2119.80815217,0.00019999,2]
[362204019,1748091040461,-27020.63372967,0.0002,2]
[362204020,1748091040472,-6363.56502037,0.0002,2]
[362204021,1748091040647,-889.59999976,0.0002,2]
[362204022,1748091040659,-1962.02666871,0.0002,2]
[362204023,1748091040690,-395.472,0.0002,2]
[362204024,1748091040792,-305.0000025,0.00019728,2]
[362204025,1748091040803,-652.01062997,0.00019728,2]
[362204026,1748091040814,-42.98936753,0.00019728,2]
[362204027,1748091040823,-1000.0,0.00019858,2]
[362204028,1748091040832,-65415.94216166,0.0002,2]
[362204034,1748091043990,-207.0,0.00019383,2]
[362204035,1748091044000,-548.2,0.0002,2]
[362204036,1748091044013,-2662.1625482,0.0002,2]
[362204037,1748091044170,-370.329914,0.00019899,2]
[362204038,1748091044182,-747.34436729,0.00019899,2]
[362204039,1748091044227,-1382.32571871,0.00019899,2]
[362204040,1748091044238,-6574.75801424,0.0002,2]
[362204041,1748091044338,-349311.30374396,0.0002,2]
[362204044,1748091046468,-15214.77318152,0.0002,2]
[362204045,1748091046607,-937.69234994,0.0002,2]
[362204046,1748091046654,-647.61332605,0.0002,2]
[362204047,1748091046665,-146033.13453658,0.0002,2]
[362204048,1748091046694,-523.5447239,0.0002,2]
[362204049,1748091046706,-10117.6711617,0.0002,2]
[362204050,1748091285094,924.79,0.00016882,2]
[362204051,1748091385619,250.0,0.00015,2]
[362204052,1748091386696,300.0,0.00017,2]
[362204053,1748091491647,150.0,0.0002739,120]
[362204055,1748091536247,266.7,0.00013699,2]
[362204057,1748091547800,160.4,0.0002499,120]
[362204058,1748092107248,25454.93,0.00027397,120]
[362204059,1748092231478,-200.0,0.00018714,2]
[362204060,1748092231488,-160.4,0.00018743,2]
[362204061,1748092231497,-167.15192221,0.00018744,2]
[362204062,1748092236414,-603.84235597,0.00018744,2]
[362204063,1748092236427,-229.00572182,0.00018744,2]
[362204064,1748092236437,-250.0,0.00018745,2]
[362204065,1748092236446,-620.99427818,0.00018753,2]
[362204066,1748092236523,-579.00572182,0.00018753,2]
[362204067,1748092236533,-549.18155537,0.00018754,2]
[362204068,1748092236585,-315.78649451,0.00018754,2]
[362204069,1748092236597,-460.52414113,0.00018754,2]
[362204070,1748092236690,-2088.06817361,0.00018754,2]
[362204107,1748092237662,-3807.14963538,0.00018754,2]
[362204108,1748092237672,-300.0,0.00018764,2]
[362204109,1748092237682,-2353.25806629,0.00018765,2]
[362204110,1748092237739,-394.14575585,0.00018765,2]
[362204133,1748092239627,-3.59617786,0.00018765,2]
[362204134,1748092239637,-248.77,0.0001877,2]
[362204135,1748092239648,-2290.79088085,0.00018783,2]
[362204136,1748092239726,-22856.87911915,0.00018783,2]
[362204137,1748092239735,-1000.0,0.000188,2]
[362204138,1748092239745,-387.62059496,0.00018803,2]
[362204139,1748092239836,-22085.43351934,0.00018803,2]
[362204431,1748092245813,-547.84176427,0.00018803,2]
[362204433,1748092246023,-879.10412143,0.00018803,2]
[362204434,1748092246039,-165.79,0.00018806,2]
[362204435,1748092246053,-150.0,0.00018808,7]
[362204436,1748092246070,-440.74893324,0.000189,2]
[362204437,1748092246261,-429.87372272,0.000189,2]
[362204438,1748092272671,10000.0,0.00027397,120]
[362204439,1748092493539,379.89657809,0.00027397,120]
[362204441,1748092736983,253.36,0.00013699,2]
[362204444,1748093161053,944.37,0.00016686,2]
[362204445,1748093201043,250.0,0.00015,2]
[362204446,1748093202131,300.0,0.00017,2]
[362204459,1748093431745,-206.0,0.0001746,2]
[362204460,1748093431755,-155.52,0.00018377,2]
[362204461,1748093431764,-865.22892603,0.000184,2]
[362204462,1748093431773,-1000.0,0.00018496,2]
[362204463,1748093431782,-250.0,0.00018602,2]
[362204464,1748093431792,-317.9436,0.000188,2]